[Event "1er Festival international de Cassis 2022"]
[Site "Cassis"]
[Date "2022.05.27"]
[Round "4.2"]
[White "Kuhn, Clement"]
[Black "Sivuk, Vitaly"]
[Result "0-1"]
[TimeControl "1 h 30 + 30 s"]
[WhiteElo "2280"]
[BlackElo "2529"]

1. d4 {[%clk 01:30:59]} {[%emt 00:00:01]} Nf6 {[%clk 01:30:48]} {[%emt
00:00:12]} 2. c4 {[%clk 01:31:21]} {[%emt 00:00:08]} e6 {[%clk 01:30:42]}
{[%emt 00:00:36]} 3. Nc3 {[%clk 01:31:45]} {[%emt 00:00:06]} d5 {[%clk
01:29:26]} {[%emt 00:01:45]} 4. cxd5 {[%clk 01:32:09]} {[%emt 00:00:06]} exd5
{[%clk 01:29:50]} {[%emt 00:00:06]} 5. Bg5 {[%clk 01:32:34]} {[%emt 00:00:05]}
c6 {[%clk 01:30:03]} {[%emt 00:00:16]} 6. e3 {[%clk 01:32:58]} {[%emt
00:00:07]} Be7 {[%clk 01:29:29]} {[%emt 00:01:03]} 7. Qc2 {[%clk 01:33:16]}
{[%emt 00:00:12]} O-O {[%clk 01:29:38]} {[%emt 00:00:21]} 8. Bd3 {[%clk
01:33:38]} {[%emt 00:00:07]} h6 {[%clk 01:29:55]} {[%emt 00:00:13]} 9. Bh4
{[%clk 01:32:02]} {[%emt 00:02:07]} Nbd7 {[%clk 01:29:40]} {[%emt 00:00:44]} 10.
Nf3 {[%clk 01:32:25]} {[%emt 00:00:08]} Ne8 {[%clk 01:29:29]} {[%emt 00:00:40]}
11. Bxe7 {[%clk 01:26:33]} {[%emt 00:06:24]} Qxe7 {[%clk 01:29:57]} {[%emt
00:00:01]} 12. O-O {[%clk 01:26:51]} {[%emt 00:00:12]} Ndf6 {[%clk 01:27:42]}
{[%emt 00:02:45]} 13. Rab1 {[%clk 01:23:28]} {[%emt 00:03:54]} Be6 {[%clk
01:24:27]} {[%emt 00:03:43]} 14. Ne5 {[%clk 01:16:43]} {[%emt 00:07:16]} Nd6
{[%clk 01:23:26]} {[%emt 00:01:30]} 15. b4 {[%clk 01:14:35]} {[%emt 00:02:38]}
Rfc8 {[%clk 01:23:40]} {[%emt 00:00:15]} 16. Na4 {[%clk 01:09:33]} {[%emt
00:05:33]} Rc7 {[%clk 01:15:36]} {[%emt 00:08:34]} 17. Rfc1 {[%clk 01:07:30]}
{[%emt 00:02:33]} Rac8 {[%clk 01:14:29]} {[%emt 00:01:36]} 18. Nc5 {[%clk
01:06:07]} {[%emt 00:01:55]} Nde4 {[%clk 01:11:21]} {[%emt 00:03:38]} 19. Rb2
{[%clk 00:55:02]} {[%emt 00:11:35]} Bf5 {[%clk 01:07:44]} {[%emt 00:04:06]} 20.
Nxe4 {[%clk 00:47:18]} {[%emt 00:08:15]} dxe4 {[%clk 01:02:24]} {[%emt
00:05:49]} 21. Be2 {[%clk 00:40:11]} {[%emt 00:07:37]} Nd5 {[%clk 01:00:40]}
{[%emt 00:02:14]} 22. Qb3 {[%clk 00:39:08]} {[%emt 00:01:34]} Be6 {[%clk
00:56:27]} {[%emt 00:04:42]} 23. Qc2 {[%clk 00:32:50]} {[%emt 00:06:49]} f6
{[%clk 00:54:45]} {[%emt 00:02:12]} 24. Nc4 {[%clk 00:31:19]} {[%emt 00:02:01]}
Bf7 {[%clk 00:49:14]} {[%emt 00:05:59]} 25. a3 {[%clk 00:28:06]} {[%emt
00:03:45]} h5 {[%clk 00:49:35]} {[%emt 00:00:08]} 26. Kh1 {[%clk 00:27:03]}
{[%emt 00:01:34]} Re8 {[%clk 00:48:23]} {[%emt 00:01:41]} 27. Qd1 {[%clk
00:24:56]} {[%emt 00:02:37]} g6 {[%clk 00:48:17]} {[%emt 00:00:36]} 28. Qg1
{[%clk 00:21:04]} {[%emt 00:04:22]} Nb6 {[%clk 00:32:10]} {[%emt 00:16:37]} 29.
Rbc2 {[%clk 00:19:05]} {[%emt 00:02:29]} Bd5 {[%clk 00:28:15]} {[%emt
00:04:25]} 30. h4 {[%clk 00:16:13]} {[%emt 00:03:23]} Qe6 {[%clk 00:24:50]}
{[%emt 00:03:54]} 31. Qh2 {[%clk 00:15:44]} {[%emt 00:01:00]} Rg7 {[%clk
00:24:58]} {[%emt 00:00:21]} 32. Qd6 {[%clk 00:14:20]} {[%emt 00:01:54]} Qf5
{[%clk 00:24:45]} {[%emt 00:00:43]} 33. Qg3 {[%clk 00:14:35]} {[%emt 00:00:16]}
Ra8 {[%clk 00:21:36]} {[%emt 00:03:39]} 34. Na5 {[%clk 00:13:55]} {[%emt
00:01:10]} a6 {[%clk 00:21:11]} {[%emt 00:00:55]} 35. Kh2 {[%clk 00:13:26]}
{[%emt 00:00:59]} g5 {[%clk 00:20:19]} {[%emt 00:01:22]} 36. Nc4 {[%clk
00:09:56]} {[%emt 00:03:59]} gxh4 {[%clk 00:18:13]} {[%emt 00:02:36]} 37. Qxh4
{[%clk 00:06:18]} {[%emt 00:04:09]} Nxc4 {[%clk 00:13:42]} {[%emt 00:05:00]} 38.
Bxc4 {[%clk 00:06:34]} {[%emt 00:00:15]} Bxc4 {[%clk 00:13:43]} {[%emt
00:00:28]} 39. Rxc4 {[%clk 00:07:00]} {[%emt 00:00:05]} Rg4 {[%clk 00:14:07]}
{[%emt 00:00:06]} 40. Qh3 {[%clk 00:07:24]} {[%emt 00:00:05]} Qxf2 {[%clk
00:13:54]} {[%emt 00:00:44]} 41. R4c2 {[%clk 00:07:50]} {[%emt 00:00:04]} Qh4
{[%clk 00:13:08]} {[%emt 00:01:15]} 42. Rc5 {[%clk 00:08:00]} {[%emt 00:00:20]}
Kf7 {[%clk 00:11:43]} {[%emt 00:01:55]} 43. Rxh5 {[%clk 00:08:02]} {[%emt
00:00:29]} Qxh3+ {[%clk 00:12:07]} {[%emt 00:00:06]} 44. gxh3 {[%clk 00:08:27]}
{[%emt 00:00:05]} Rg7 {[%clk 00:12:32]} {[%emt 00:00:05]} 45. Rg1 {[%clk
00:07:13]} {[%emt 00:01:44]} Rag8 {[%clk 00:10:16]} {[%emt 00:02:46]} 46. Rxg7+
{[%clk 00:07:39]} {[%emt 00:00:05]} Rxg7 {[%clk 00:10:41]} {[%emt 00:00:04]} 47.
h4 {[%clk 00:05:41]} {[%emt 00:02:28]} Ke6 {[%clk 00:10:40]} {[%emt 00:00:30]}
48. Rh8 {[%clk 00:05:33]} {[%emt 00:00:38]} Kd5 {[%clk 00:10:33]} {[%emt
00:00:38]} 49. h5 {[%clk 00:03:05]} {[%emt 00:02:58]} Kc4 {[%clk 00:10:45]}
{[%emt 00:00:18]} 50. h6 {[%clk 00:03:07]} {[%emt 00:00:28]} Rg6 {[%clk
00:10:10]} {[%emt 00:01:04]} 51. Rh7 {[%clk 00:02:48]} {[%emt 00:00:50]} Kd3
{[%clk 00:10:19]} {[%emt 00:00:20]} 52. Rxb7 {[%clk 00:02:17]} {[%emt
00:01:03]} Rxh6+ {[%clk 00:10:34]} {[%emt 00:00:15]} 53. Kg3 {[%clk 00:02:45]}
{[%emt 00:00:01]} Kxe3 {[%clk 00:10:54]} {[%emt 00:00:09]} 54. d5 {[%clk
00:02:05]} {[%emt 00:01:10]} cxd5 {[%clk 00:11:04]} {[%emt 00:00:20]} 55. Rb6
{[%clk 00:02:34]} {[%emt 00:00:02]} d4 {[%clk 00:11:04]} {[%emt 00:00:29]} 56.
Rxa6 {[%clk 00:03:03]} {[%emt 00:00:02]} d3 {[%clk 00:11:29]} {[%emt 00:00:05]}
57. Rd6 {[%clk 00:03:29]} {[%emt 00:00:04]} d2 {[%clk 00:11:48]} {[%emt
00:00:11]} 58. b5 {[%clk 00:03:52]} {[%emt 00:00:08]} Rh1 {[%clk 00:11:55]}
{[%emt 00:00:21]} 0-1

[Event "1er Festival international de Cassis 2022"]
[Site "Cassis"]
[Date "2022.05.27"]
[Round "4.3"]
[White "Yankelevich, Lev"]
[Black "Degraeve, Remy"]
[Result "1/2-1/2"]
[TimeControl "1 h 30 + 30 s"]
[WhiteElo "2473"]
[BlackElo "2383"]

1. d4 {[%clk 01:24:28]} {[%emt 00:06:32]} d5 {[%clk 01:30:56]} {[%emt
00:00:05]} 2. c4 {[%clk 01:24:43]} {[%emt 00:00:15]} e6 {[%clk 01:31:24]}
{[%emt 00:00:02]} 3. Nc3 {[%clk 01:25:10]} {[%emt 00:00:03]} Nf6 {[%clk
01:31:52]} {[%emt 00:00:03]} 4. cxd5 {[%clk 01:25:36]} {[%emt 00:00:04]} Nxd5
{[%emt 00:00:04]} 5. e4 {[%clk 01:25:44]} {[%emt 00:00:21]} Nxc3 {[%emt
00:00:05]} 6. bxc3 {[%clk 01:26:10]} {[%emt 00:00:03]} c5 {[%clk 01:33:11]}
{[%emt 00:00:03]} 7. Rb1 {[%clk 01:26:35]} {[%emt 00:00:05]} Be7 {[%clk
01:33:39]} {[%emt 00:00:03]} 8. Nf3 {[%clk 01:27:01]} {[%emt 00:00:04]} O-O
{[%clk 01:34:04]} {[%emt 00:00:05]} 9. Bc4 {[%clk 01:27:20]} {[%emt 00:00:10]}
Qc7 {[%clk 01:34:22]} {[%emt 00:00:13]} 10. Qe2 {[%clk 01:27:37]} {[%emt
00:00:13]} a6 {[%clk 01:34:47]} {[%emt 00:00:05]} 11. O-O {[%clk 01:27:54]}
{[%emt 00:00:13]} b5 {[%clk 01:35:03]} {[%emt 00:00:14]} 12. Bd3 {[%clk
01:28:18]} {[%emt 00:00:05]} Nd7 {[%clk 01:35:22]} {[%emt 00:00:12]} 13. e5
{[%clk 01:16:37]} {[%emt 00:12:11]} Bb7 {[%clk 01:32:34]} {[%emt 00:03:17]} 14.
Ng5 {[%clk 01:16:59]} {[%emt 00:00:09]} h6 {[%clk 01:10:56]} {[%emt 00:22:09]}
15. Nh3 {[%clk 01:04:36]} {[%emt 00:12:53]} Qc6 {[%clk 00:52:14]} {[%emt
00:19:11]} 16. Nf4 {[%clk 00:56:30]} {[%emt 00:08:35]} Bg5 {[%clk 00:44:21]}
{[%emt 00:08:24]} 17. Qg4 {[%clk 00:48:05]} {[%emt 00:08:55]} Bxf4 {[%clk
00:44:44]} {[%emt 00:00:07]} 18. Bxf4 {[%clk 00:48:18]} {[%emt 00:00:18]} f5
{[%clk 00:45:12]} {[%emt 00:00:02]} 19. Qg6 {[%clk 00:46:00]} {[%emt 00:02:48]}
Rf7 {[%clk 00:44:15]} {[%emt 00:01:28]} 20. Bxh6 {[%clk 00:34:31]} {[%emt
00:11:59]} cxd4 {[%clk 00:43:30]} {[%emt 00:01:15]} 21. cxd4 {[%clk 00:33:33]}
{[%emt 00:01:28]} Nf8 {[%clk 00:43:48]} {[%emt 00:00:11]} 22. Qg3 {[%clk
00:33:36]} {[%emt 00:00:27]} Qxg2+ {[%clk 00:44:09]} {[%emt 00:00:10]} 23. Qxg2
{[%clk 00:34:03]} {[%emt 00:00:03]} Bxg2 {[%clk 00:44:31]} {[%emt 00:00:08]} 24.
Kxg2 {[%clk 00:34:28]} {[%emt 00:00:05]} gxh6 {[%clk 00:44:57]} {[%emt
00:00:04]} 25. a4 {[%clk 00:27:24]} {[%emt 00:07:33]} Rd7 {[%clk 00:39:31]}
{[%emt 00:05:56]} 26. axb5 {[%clk 00:26:16]} {[%emt 00:01:38]} Rxd4 {[%clk
00:39:53]} {[%emt 00:00:08]} 27. Bc2 {[%clk 00:25:15]} {[%emt 00:01:32]} Rd2
{[%clk 00:36:29]} {[%emt 00:03:53]} 28. Bd1 {[%clk 00:24:31]} {[%emt 00:01:13]}
Rb8 {[%clk 00:24:32]} {[%emt 00:12:27]} 29. b6 {[%clk 00:24:25]} {[%emt
00:00:37]} Nd7 {[%clk 00:24:58]} {[%emt 00:00:04]} 30. b7 {[%clk 00:24:22]}
{[%emt 00:00:33]} Nxe5 {[%clk 00:25:23]} {[%emt 00:00:05]} 31. Ba4 {[%clk
00:20:57]} {[%emt 00:03:54]} Nd3 {[%clk 00:19:27]} {[%emt 00:06:27]} 32. Rb6
{[%clk 00:15:16]} {[%emt 00:06:10]} Kf7 {[%clk 00:18:34]} {[%emt 00:01:24]} 33.
Bb3 {[%clk 00:11:33]} {[%emt 00:04:14]} Kf6 {[%clk 00:10:57]} {[%emt 00:08:07]}
34. Rxe6+ {[%clk 00:11:06]} {[%emt 00:00:57]} Kg5 {[%clk 00:11:23]} {[%emt
00:00:04]} 35. Kf3 {[%clk 00:04:06]} {[%emt 00:07:30]} Rxb7 {[%clk 00:08:47]}
{[%emt 00:03:06]} 36. Ke3 {[%clk 00:03:34]} {[%emt 00:01:02]} Rxb3 {[%clk
00:05:22]} {[%emt 00:03:55]} 37. Kxd2 {[%clk 00:03:49]} {[%emt 00:00:15]} Nc5
{[%clk 00:04:33]} {[%emt 00:01:19]} 38. Rg1+ {[%clk 00:03:50]} {[%emt
00:00:30]} Kf4 {[%clk 00:04:11]} {[%emt 00:00:51]} 39. Rxh6 {[%clk 00:04:08]}
{[%emt 00:00:11]} Rb2+ {[%clk 00:04:31]} {[%emt 00:00:10]} 40. Kc3 {[%clk
00:04:18]} {[%emt 00:00:20]} Rxf2 {[%clk 00:04:57]} {[%emt 00:00:04]} 41. h4
{[%clk 00:04:14]} {[%emt 00:00:35]} Ne4+ {[%clk 00:05:14]} {[%emt 00:00:12]} 42.
Kb4 {[%clk 00:03:57]} {[%emt 00:00:47]} Rh2 {[%clk 00:05:18]} {[%emt 00:00:26]}
43. Rf1 {[%clk 00:03:36]} {[%emt 00:00:51]} Ke5 {[%clk 00:04:56]} {[%emt
00:00:52]} 44. Rh8 {[%clk 00:01:35]} {[%emt 00:02:31]} Ng3 {[%clk 00:05:11]}
{[%emt 00:00:15]} 45. Rf3 {[%clk 00:01:31]} {[%emt 00:00:34]} Ne4 {[%clk
00:03:23]} {[%emt 00:02:18]} 46. h5 {[%clk 00:00:51]} {[%emt 00:01:10]} Nf6
{[%clk 00:03:44]} {[%emt 00:00:09]} 47. h6 {[%clk 00:01:09]} {[%emt 00:00:12]}
Ng4 {[%clk 00:03:04]} {[%emt 00:01:09]} 48. Re8+ {[%clk 00:00:58]} {[%emt
00:00:41]} Kf6 {[%clk 00:02:52]} {[%emt 00:00:42]} 49. Rf8+ {[%clk 00:01:14]}
{[%emt 00:00:15]} Ke7 {[%clk 00:03:08]} {[%emt 00:00:15]} 50. R3xf5 {[%clk
00:00:55]} {[%emt 00:00:48]} Rxh6 {[%clk 00:03:27]} {[%emt 00:00:10]} 51. R5f7+
{[%clk 00:01:10]} {[%emt 00:00:16]} Ke6 {[%emt 00:00:32]} 52. Ra7 {[%clk
00:01:10]} {[%emt 00:00:21]} Ke5 {[%clk 00:03:47]} {[%emt 00:00:17]} 53. Re8+
{[%clk 00:01:21]} {[%emt 00:00:18]} Re6 {[%clk 00:04:05]} {[%emt 00:00:13]} 54.
Rxe6+ {[%clk 00:01:37]} {[%emt 00:00:15]} Kxe6 {[%clk 00:04:30]} {[%emt
00:00:05]} 55. Rxa6+ {[%clk 00:02:05]} {[%emt 00:00:02]} Kd5 {[%clk 00:04:29]}
{[%emt 00:00:31]} 56. Kc3 {[%clk 00:02:20]} {[%emt 00:00:15]} Ne5 {[%clk
00:04:54]} {[%emt 00:00:05]} 57. Rh6 {[%clk 00:02:43]} {[%emt 00:00:07]} Kc5
{[%emt 00:00:07]} 58. Rh8 {[%clk 00:02:52]} {[%emt 00:00:20]} Kd5 {[%clk
00:05:44]} {[%emt 00:00:04]} 59. Rh5 {[%clk 00:03:20]} {[%emt 00:00:02]} Ke4
{[%clk 00:06:06]} {[%emt 00:00:06]} 60. Rh4+ {[%clk 00:03:41]} {[%emt
00:00:11]} Kd5 {[%clk 00:06:33]} {[%emt 00:00:04]} 61. Rd4+ {[%clk 00:04:09]}
{[%emt 00:00:02]} Kc5 {[%clk 00:06:56]} {[%emt 00:00:06]} 62. Rd8 {[%clk
00:04:20]} {[%emt 00:00:19]} Nc6 {[%clk 00:07:21]} {[%emt 00:00:05]} 63. Rc8
{[%clk 00:04:04]} {[%emt 00:00:46]} Kd5 {[%clk 00:07:48]} {[%emt 00:00:03]} 64.
Kd3 {[%clk 00:04:30]} {[%emt 00:00:03]} Ne5+ {[%clk 00:08:14]} {[%emt
00:00:05]} 65. Ke3 {[%clk 00:04:59]} {[%emt 00:00:02]} Nc4+ {[%clk 00:08:39]}
{[%emt 00:00:05]} 66. Kf4 {[%clk 00:05:26]} {[%emt 00:00:03]} Nd6 {[%clk
00:09:01]} {[%emt 00:00:08]} 67. Rd8 {[%clk 00:05:45]} {[%emt 00:00:10]} Ke6
{[%clk 00:09:28]} {[%emt 00:00:04]} 68. Ra8 {[%clk 00:05:22]} {[%emt 00:00:53]}
Kd5 {[%clk 00:09:55]} {[%emt 00:00:03]} 69. Ra5+ {[%clk 00:05:35]} {[%emt
00:00:18]} Kd4 {[%clk 00:10:21]} {[%emt 00:00:04]} 70. Ra1 {[%clk 00:06:01]}
{[%emt 00:00:03]} Kd5 {[%clk 00:10:43]} {[%emt 00:00:09]} 71. Rd1+ {[%clk
00:05:55]} {[%emt 00:00:36]} Ke6 {[%clk 00:11:10]} {[%emt 00:00:03]} 72. Rd4
{[%clk 00:06:19]} {[%emt 00:00:06]} Nf7 {[%clk 00:11:35]} {[%emt 00:00:05]} 73.
Re4+ {[%clk 00:06:40]} {[%emt 00:00:09]} Kd5 {[%emt 00:00:07]} 74. Re2 {[%clk
00:05:01]} {[%emt 00:02:08]} Nd6 {[%clk 00:12:25]} {[%emt 00:00:05]} 75. Re7
{[%clk 00:05:28]} {[%emt 00:00:03]} Nc4 {[%clk 00:12:44]} {[%emt 00:00:10]} 76.
Rd7+ {[%clk 00:05:50]} {[%emt 00:00:08]} Nd6 {[%clk 00:13:09]} {[%emt
00:00:06]} 77. Rd8 {[%clk 00:06:06]} {[%emt 00:00:14]} Ke6 {[%clk 00:13:35]}
{[%emt 00:00:04]} 78. Ke3 {[%clk 00:06:32]} {[%emt 00:00:04]} Ke5 {[%clk
00:13:59]} {[%emt 00:00:06]} 79. Kd3 {[%clk 00:06:49]} {[%emt 00:00:14]} Kd5
{[%clk 00:14:25]} {[%emt 00:00:04]} 80. Rh8 {[%clk 00:07:14]} {[%emt 00:00:05]}
Nf7 {[%clk 00:14:43]} {[%emt 00:00:12]} 81. Rh5+ {[%clk 00:07:37]} {[%emt
00:00:08]} Ne5+ {[%clk 00:14:53]} {[%emt 00:00:20]} 82. Ke3 {[%clk 00:08:00]}
{[%emt 00:00:07]} Ke6 {[%clk 00:15:09]} {[%emt 00:00:13]} 83. Kd4 {[%clk
00:07:55]} {[%emt 00:00:34]} Nd7 {[%clk 00:15:30]} {[%emt 00:00:10]} 84. Ra5
{[%clk 00:07:45]} {[%emt 00:00:40]} Nf6 {[%clk 00:15:55]} {[%emt 00:00:05]} 85.
Re5+ {[%clk 00:07:45]} {[%emt 00:00:30]} Kd6 {[%clk 00:16:18]} {[%emt
00:00:06]} 86. Re1 {[%clk 00:08:08]} {[%emt 00:00:07]} Nd7 {[%clk 00:16:44]}
{[%emt 00:00:03]} 87. Ra1 {[%clk 00:08:16]} {[%emt 00:00:23]} Ke6 {[%clk
00:17:02]} {[%emt 00:00:13]} 88. Ra6+ {[%clk 00:07:55]} {[%emt 00:00:51]} Kf5
{[%emt 00:00:05]} 89. Rc6 {[%clk 00:07:59]} {[%emt 00:00:25]} Nf6 {[%clk
00:17:54]} {[%emt 00:00:03]} 90. Rd6 {[%clk 00:08:25]} {[%emt 00:00:04]} Ng4
{[%clk 00:18:18]} {[%emt 00:00:06]} 91. Rd7 {[%clk 00:07:58]} {[%emt 00:00:57]}
Nf6 {[%clk 00:18:43]} {[%emt 00:00:05]} 92. Re7 {[%clk 00:08:19]} {[%emt
00:00:08]} Ng4 {[%clk 00:19:10]} {[%emt 00:00:04]} 93. Re8 {[%clk 00:07:51]}
{[%emt 00:00:58]} Nf6 {[%clk 00:19:36]} {[%emt 00:00:05]} 94. Re1 {[%clk
00:08:16]} {[%emt 00:00:05]} Nd7 {[%clk 00:19:58]} {[%emt 00:00:09]} 95. Re7
{[%clk 00:07:18]} {[%emt 00:01:27]} Nf6 {[%clk 00:20:24]} {[%emt 00:00:04]} 96.
Re5+ {[%clk 00:07:47]} {[%emt 00:00:01]} Kf4 {[%clk 00:20:48]} {[%emt
00:00:06]} 97. Ra5 {[%clk 00:08:14]} {[%emt 00:00:03]} Ne4 {[%clk 00:21:09]}
{[%emt 00:00:08]} 98. Ra8 {[%clk 00:08:10]} {[%emt 00:00:35]} Nf6 {[%clk
00:21:31]} {[%emt 00:00:08]} 99. Ra5 {[%clk 00:08:24]} {[%emt 00:00:15]} Ng4
{[%clk 00:21:56]} {[%emt 00:00:06]} 100. Ra1 {[%clk 00:08:49]} {[%emt
00:00:05]} Kf5 {[%clk 00:22:21]} {[%emt 00:00:05]} 101. Ra5+ {[%clk 00:06:48]}
{[%emt 00:02:31]} Ke6 {[%clk 00:22:42]} {[%emt 00:00:09]} 102. Ra6+ {[%clk
00:06:59]} {[%emt 00:00:19]} Kf5 {[%clk 00:23:09]} {[%emt 00:00:04]} 103. Ra1
{[%clk 00:06:20]} {[%emt 00:01:08]} Ke6 {[%clk 00:23:34]} {[%emt 00:00:06]} 104.
Re1+ {[%clk 00:06:46]} {[%emt 00:00:04]} Kf5 {[%clk 00:23:57]} {[%emt
00:00:07]} 105. Rf1+ {[%clk 00:07:01]} {[%emt 00:00:14]} Ke6 {[%clk 00:24:19]}
{[%emt 00:00:09]} 106. Rh1 {[%clk 00:07:21]} {[%emt 00:00:11]} Nf6 {[%clk
00:24:44]} {[%emt 00:00:04]} 107. Ke4 {[%clk 00:07:15]} {[%emt 00:00:12]} Ke5+
1/2-1/2

[Event "1er Festival international de Cassis 2022"]
[Site "Cassis"]
[Date "2022.05.27"]
[Round "4.4"]
[White "Flear, Glenn C"]
[Black "Bonnafous, Michel"]
[Result "1-0"]
[TimeControl "1 h 30 + 30 s"]
[WhiteElo "2418"]
[BlackElo "1915"]

1. d4 {[%clk 01:30:47]} {[%emt 00:00:13]} f5 {[%clk 01:30:43]} {[%emt
00:00:18]} 2. Bf4 {[%clk 01:30:19]} {[%emt 00:00:57]} Nf6 {[%clk 01:30:50]}
{[%emt 00:00:23]} 3. e3 {[%clk 01:30:39]} {[%emt 00:00:10]} e6 {[%clk
01:30:51]} {[%emt 00:00:29]} 4. Be2 {[%clk 01:30:13]} {[%emt 00:00:56]} Be7
{[%clk 01:30:54]} {[%emt 00:00:28]} 5. c4 {[%clk 01:29:46]} {[%emt 00:00:57]}
d6 {[%clk 01:30:50]} {[%emt 00:00:34]} 6. h3 {[%clk 01:28:15]} {[%emt
00:02:01]} O-O {[%clk 01:30:37]} {[%emt 00:00:44]} 7. Nc3 {[%clk 01:28:24]}
{[%emt 00:00:19]} Ne4 {[%clk 01:26:03]} {[%emt 00:05:05]} 8. Nxe4 {[%clk
01:21:25]} {[%emt 00:07:29]} fxe4 {[%clk 01:26:31]} {[%emt 00:00:02]} 9. Qc2
{[%clk 01:20:22]} {[%emt 00:01:33]} d5 {[%clk 01:12:28]} {[%emt 00:14:33]} 10.
cxd5 {[%clk 01:07:14]} {[%emt 00:13:37]} Bb4+ {[%clk 01:10:37]} {[%emt
00:02:22]} 11. Kd1 {[%clk 01:04:43]} {[%emt 00:03:00]} exd5 {[%clk 01:09:35]}
{[%emt 00:01:32]} 12. Bxc7 {[%clk 01:04:29]} {[%emt 00:00:44]} Qg5 {[%clk
01:06:09]} {[%emt 00:03:57]} 13. Bg3 {[%clk 01:03:43]} {[%emt 00:01:15]} Nc6
{[%clk 01:05:06]} {[%emt 00:01:34]} 14. a3 {[%clk 00:55:47]} {[%emt 00:08:26]}
Ba5 {[%clk 00:53:13]} {[%emt 00:12:23]} 15. Bb5 {[%clk 00:41:35]} {[%emt
00:14:40]} Bd7 {[%clk 00:50:47]} {[%emt 00:02:56]} 16. Ne2 {[%clk 00:41:33]}
{[%emt 00:00:31]} Rac8 {[%clk 00:50:00]} {[%emt 00:01:19]} 17. Qa4 {[%clk
00:35:07]} {[%emt 00:06:56]} Bb6 {[%clk 00:45:41]} {[%emt 00:04:48]} 18. Rc1
{[%clk 00:31:51]} {[%emt 00:03:46]} Rxf2 {[%clk 00:36:23]} {[%emt 00:09:49]} 19.
Bxf2 {[%clk 00:23:22]} {[%emt 00:08:58]} Qxg2 {[%clk 00:36:46]} {[%emt
00:00:07]} 20. Kd2 {[%clk 00:21:45]} {[%emt 00:02:06]} Qxf2 {[%clk 00:36:33]}
{[%emt 00:00:44]} 21. Rcf1 {[%clk 00:21:28]} {[%emt 00:00:46]} Qh4 {[%clk
00:35:21]} {[%emt 00:01:42]} 22. Nf4 {[%clk 00:19:25]} {[%emt 00:02:34]} a6
{[%clk 00:31:40]} {[%emt 00:04:12]} 23. Bxc6 {[%clk 00:19:00]} {[%emt
00:00:54]} Bxc6 {[%clk 00:31:38]} {[%emt 00:00:31]} 24. Qb4 {[%clk 00:17:35]}
{[%emt 00:01:54]} Bd8 {[%clk 00:26:16]} {[%emt 00:05:54]} 25. Nxd5 {[%clk
00:13:54]} {[%emt 00:04:11]} Bg5 {[%clk 00:24:21]} {[%emt 00:02:24]} 26. Qd6
{[%clk 00:10:28]} {[%emt 00:03:56]} Rd8 {[%clk 00:21:49]} {[%emt 00:03:02]} 27.
Qe6+ {[%clk 00:10:32]} {[%emt 00:00:25]} Kh8 {[%clk 00:21:48]} {[%emt
00:00:31]} 28. Rf5 {[%clk 00:07:40]} {[%emt 00:03:24]} Bxd5 {[%clk 00:09:40]}
{[%emt 00:12:38]} 29. Qxd5 {[%clk 00:07:56]} {[%emt 00:00:13]} Bxe3+ {[%clk
00:09:21]} {[%emt 00:00:48]} 30. Kc2 {[%clk 00:07:55]} {[%emt 00:00:33]} Bxd4
{[%clk 00:07:59]} {[%emt 00:01:52]} 31. Rhf1 {[%clk 00:06:20]} {[%emt
00:02:04]} Rc8+ {[%clk 00:06:20]} {[%emt 00:02:10]} 32. Kb1 {[%clk 00:06:41]}
{[%emt 00:00:07]} Bf6 {[%clk 00:06:05]} {[%emt 00:00:45]} 33. Rh5 {[%clk
00:05:49]} {[%emt 00:01:23]} Qg3 {[%clk 00:03:42]} {[%emt 00:02:54]} 34. Qxe4
{[%clk 00:04:55]} {[%emt 00:01:24]} g6 {[%clk 00:02:23]} {[%emt 00:01:49]} 35.
Rd5 {[%clk 00:03:32]} {[%emt 00:01:53]} Bg7 {[%clk 00:00:47]} {[%emt 00:02:06]}
36. Qd3 {[%clk 00:02:59]} {[%emt 00:01:02]} Qc7 {[%clk 00:00:51]} {[%emt
00:00:26]} 37. Rd1 {[%clk 00:02:41]} {[%emt 00:00:47]} Bf6 {[%clk 00:00:53]}
{[%emt 00:00:29]} 38. Rd6 {[%clk 00:02:21]} {[%emt 00:00:50]} Be5 {[%clk
00:00:37]} {[%emt 00:00:46]} 39. Rd8+ {[%clk 00:02:03]} {[%emt 00:00:47]} Rxd8
{[%clk 00:00:33]} {[%emt 00:00:34]} 40. Qxd8+ {[%clk 00:02:25]} {[%emt
00:00:08]} 1-0

[Event "1er Festival international de Cassis 2022"]
[Site "Cassis"]
[Date "2022.05.27"]
[Round "4.5"]
[White "Derige Kane, Yan"]
[Black "Dudognon, Thibault"]
[Result "1/2-1/2"]
[TimeControl "1 h 30 + 30 s"]
[WhiteElo "2161"]
[BlackElo "2305"]

1. d4 {[%clk 01:20:17]} {[%emt 00:10:42]} d5 {[%clk 01:30:55]} {[%emt
00:00:05]} 2. c4 {[%clk 01:20:44]} {[%emt 00:00:03]} e6 {[%clk 01:31:22]}
{[%emt 00:00:03]} 3. Nc3 {[%clk 01:21:10]} {[%emt 00:00:04]} c6 {[%clk
01:31:48]} {[%emt 00:00:04]} 4. e4 {[%clk 01:20:41]} {[%emt 00:00:59]} dxe4
{[%clk 01:32:08]} {[%emt 00:00:09]} 5. Nxe4 {[%clk 01:21:06]} {[%emt 00:00:05]}
Bb4+ {[%clk 01:32:22]} {[%emt 00:00:15]} 6. Bd2 {[%clk 01:19:24]} {[%emt
00:02:12]} Qxd4 {[%clk 01:32:46]} {[%emt 00:00:07]} 7. Bxb4 {[%clk 01:19:51]}
{[%emt 00:00:03]} Qxe4+ {[%clk 01:33:08]} {[%emt 00:00:08]} 8. Ne2 {[%clk
01:20:17]} {[%emt 00:00:04]} Na6 {[%clk 01:33:25]} {[%emt 00:00:12]} 9. Bf8
{[%clk 01:20:37]} {[%emt 00:00:10]} Ne7 {[%clk 01:33:43]} {[%emt 00:00:11]} 10.
Bxg7 {[%clk 01:20:52]} {[%emt 00:00:15]} Nb4 {[%clk 01:34:00]} {[%emt
00:00:12]} 11. Qd6 {[%clk 01:19:16]} {[%emt 00:02:07]} Nd3+ {[%clk 01:30:43]}
{[%emt 00:03:47]} 12. Kd2 {[%clk 01:18:34]} {[%emt 00:01:12]} Nf5 {[%clk
01:30:54]} {[%emt 00:00:19]} 13. Qxd3 {[%clk 01:18:51]} {[%emt 00:00:12]} Qxd3+
{[%clk 01:31:21]} {[%emt 00:00:03]} 14. Kxd3 {[%clk 01:19:20]} {[%emt
00:00:01]} Nxg7 {[%clk 01:31:44]} {[%emt 00:00:07]} 15. g4 {[%clk 01:18:30]}
{[%emt 00:01:21]} f6 {[%emt 00:18:03]} 16. f4 {[%clk 01:11:32]} Ke7 {[%clk
01:17:54]} {[%emt 00:04:14]} 17. Ke4 {[%emt 00:07:30]} 1/2-1/2